Cogmind - Beta 14 @@@ ROGUE MODE // 2024.09.20 @ 22:03:02 Player: Dull Result: Destroyed by G-34 Mercenary with Small Laser Performance ------------- Evolutions (0) 0 Regions Visited (1) 200 Robots Destroyed (25) 125 Value Destroyed (561) 561 Prototype IDs (0) 0 Alien Tech Used (0) 0 Bonus (0) 0 TOTAL SCORE: 886 Bonus ------- None Cogmind --------- Core Integrity 0/250 Matter 300/300 Energy 100/100 System Corruption 4% Temperature Cool (15) Movement Core (1350) Ox26 Location -10/Materials Parts ------- > --- POWER (1) -------- (None) > --- PROPULSION (2) --- (None) > --- UTILITY (2) ------ Huge Storage Unit > --- WEAPON (2) ------- (None) > --- INVENTORY (25) --- Ion Engine Ion Engine Light Treads Wheel Improved Heat Sink Improved Heat Sink Visual Processing Unit Sensor Array Sensor Array Sensor Array Signal Interpreter Signal Interpreter Signal Interpreter Terrain Scan Processor ECM Suite ECM Suite Shield Generator Shield Generator Shield Generator Tractor Beam Small Laser Light Assault Rifle EMP Blaster EMP Blaster Peak State ------------ > --- POWER ------------ Light Nuclear Core > --- PROPULSION ------- Light Treads Light Treads > --- UTILITY ---------- Huge Storage Unit Improved Terrain Scanner > --- WEAPON ----------- Assault Rifle Light Assault Rifle > --- INVENTORY -------- Ion Engine Ion Engine Light Treads Wheel Improved Heat Sink Visual Processing Unit Sensor Array Sensor Array Sensor Array Signal Interpreter Signal Interpreter Terrain Scan Processor ECM Suite ECM Suite Shield Generator Shield Generator Shield Generator Small Laser Light Assault Rifle EMP Blaster EMP Blaster [Rating: 14] Favorites ----------- Power Light Nuclear Core Engine Light Ion Engine Power Core Light Nuclear Core Propulsion Light Treads Treads Light Treads Leg Aluminum Leg Utility Huge Storage Unit Device Improved Terrain Scanner Storage Huge Storage Unit Weapon Assault Rifle Energy Gun Particle Gun Ballistic Gun Assault Rifle Build | -11 -10 ------- Run | Yrd Mat Slots Evolved . | . . Power . | . . Propulsion . | . . Utility . | . . Weapon . | . . Parts Attached 9 | 2 7 Power 2 | . 2 Engine . | . . Core 2 | . 2 Reactor . | . . Propulsion 2 | . 2 Treads 2 | . 2 Leg . | . . Wheel . | . . Hover . | . . Flight . | . . Utility 2 | 1 1 Device 1 | 1 . Storage 1 | . 1 Processor . | . . Hackware . | . . Protection . | . . Artifact . | . . Weapon 3 | 1 2 Energy Gun 1 | . 1 Energy Cannon . | . . Ballistic Gun 2 | 1 1 Ballistic Cannon . | . . Launcher . | . . Special Weapon . | . . Impact Weapon . | . . Slashing Weapon . | . . Piercing Weapon . | . . Special Melee Weapon . | . . Unidentified Prototypes . | . . Parts Lost 7 | . 7 Power 1 | . 1 Propulsion 3 | . 3 Utility 1 | . 1 Weapon 2 | . 2 Highest Loss Streak 5 | . 5 To Critical Strikes . | . . Average Slot Usage (%) 96 | . 96 Engine 1 | . 1 Core 12 | . 12 Treads 15 | . 15 Leg 11 | . 11 Device 11 | . 11 Storage 14 | . 14 Energy Gun 1 | . 1 Ballistic Gun 25 | . 25 Peak Build Rating 14 | 9 14 Average Rating 12 | 6 12 On Entrance 7 | 6 9 Naked Turns . | . . Heaviest Build 90 | 12 90 Greatest Support 40 | 20 40 Greatest Overweight (x) 8 | . 8 Average Overweight (x) 2 | . 2 Largest Inventory Capacity 25 | 8 25 Average Capacity 22 | 8 23 Most Carried 24 | 6 24 Average Carried 16 | 5 16 Final Capacity 25 | 8 25 Final Carried 24 | 5 24 Class Distribution -------------------- 100% | Mutant Dominant Class ---------------- Mutant | -10/Materials Resources | -11 -10 ----------- Run | Yrd Mat Matter Collected 614 | 222 392 Remotely . | . . Salvage Created 808 | 109 699 Parts 66 | 5 61 Haulers Intercepted 1 | . 1 Recyclers Shooed . | . . Parts Field Recycled . | . . Retrieved Matter . | . . Parts Self-Destructed . | . . Prevented . | . . Kills | -11 -10 ------- Run | Yrd Mat Combat Hostiles Destroyed 15 | . 15 Guns 15 | . 15 Classes Destroyed 7 | 2 5 Worker 4 | . 4 Tunneler 1 | 1 . Hauler 1 | . 1 Recycler 1 | 1 . Watcher 3 | . 3 Swarmer 3 | . 3 Grunt 12 | . 12 Best Kill Streak 7 | 2 7 Combat Bots Only 6 | . 6 Max Kills in Single Turn 1 | 1 1 Gunslinging . | . . Exploded . | . . Melee . | . . Uniques/NPCs Destroyed . | . . Combat | -11 -10 -------- Run | Yrd Mat Hostile Shots Fired 149 | . 149 Missed 50 | . 50 Damage Taken 1257 | . 1257 Core 252 | . 252 Absorbed by Shields . | . . Regen/Repaired (Parts) 136 | . 136 Core Remaining (%) 100 | 100 . Volleys Fired 90 | 2 88 Largest 2 | 2 2 Hottest 85 | 60 85 Shots Fired 180 | 4 176 Gun 180 | 4 176 Cannon . | . . Launcher . | . . Special . | . . Kinetic 174 | 2 172 Thermal 6 | 2 4 Explosive . | . . Electromagnetic . | . . Robot Hit Streak 6 | 3 6 Robot Miss Streak 7 | . 7 Penetration Max . | . . Secondary Targets 6 | . 6 Max Gunslinging Chain 1 | . 1 Shots Hit Robots 105 | 3 102 Core Hits 49 | 3 46 Critical Kills . | . . Critical Parts Destroyed 2 | . 2 Critical Strikes 2 | . 2 Destroy 2 | . 2 Melee Attacks . | . . Impact . | . . Slashing . | . . Piercing . | . . Sneak Attacks . | . . Combat Hostiles . | . . Follow-up Attacks . | . . Damage Inflicted 1185 | 32 1153 Guns 1136 | 32 1104 Cannons . | . . Explosions 27 | . 27 Melee . | . . Ramming 22 | . 22 Kinetic 1045 | 9 1036 Thermal 91 | 23 68 Explosive . | . . Electromagnetic 27 | . 27 Impact . | . . Slashing . | . . Piercing . | . . Highest Corruption 4 | . 4 Average Corruption 3 | . 3 Corruption Purged . | . . Corruption Blocked . | . . Overload Shots . | . . Overflow Damage . | . . Projectiles . | . . Explosions . | . . Melee . | . . Knockbacks . | . . Impact . | . . Kinetic . | . . Secondary . | . . Self-Inflicted Damage 17 | . 17 Shots . | . . Rammed 1 | . 1 Targets Rammed 2 | . 2 Kicked . | . . Crushed 1 | . 1 Highest Temperature 185 | 20 185 Average Temperature 19 | 15 20 Received Heat Transfer 654 | . 654 Siege Activations . | . . Robots Corrupted . | . . Combat Hostiles . | . . Parts Fried . | . . Impact Corruptions . | . . Robots Melted . | . . Combat Hostiles . | . . Parts Melted . | . . Heat Transferred 198 | 50 148 Parts Sabotaged . | . . Parts Stolen . | . . Parts Stripped . | . . Power Chain Reactions . | . . Alert | -11 -10 ------- Run | Yrd Mat Peak Influence 259 | 10 259 Initial 6 | . 6 Average 42 | 4 43 Maximum Alert Level 1 | . 1 Low Security (%) 93 | 100 93 Level 1 6 | . 6 Level 2 . | . . Level 3 . | . . Level 4 . | . . Level 5 . | . . High Security . | . . Max Security . | . . Squads Dispatched 4 | . 4 Investigation 2 | . 2 Extermination . | . . Reinforcement 2 | . 2 Assault . | . . Garrison . | . . Intercept . | . . Searches Triggered . | . . Construction Impeded . | . . Haulers Reinforced . | . . Active Scanning Responses . | . . Cargo Convoy Interrupts . | . . Stealth | -11 -10 --------- Run | Yrd Mat Distress Signals 2 | . 2 Communications Jammed . | . . Distress Signals . | . . Times Spotted 32 | . 32 Peak Tracking Total 4 | . 4 Tactical Retreats 2 | . 2 Traps | -11 -10 ------- Run | Yrd Mat Traps Triggered 2 | . 2 Indirectly . | . . Trap Hack Attempts . | . . Triggered . | . . Disarmed . | . . Reprogrammed . | . . Reused . | . . Traps Extracted . | . . Installed . | . . Triggered . | . . Machines | -11 -10 ---------- Run | Yrd Mat Machines Disabled 3 | . 3 Max in Single Turn 2 | . 2 Machines Repaired . | . . Machines Dismantled . | . . Machines Sabotaged . | . . Overloaded Fab Kills . | . . Hacking | -11 -10 --------- Run | Yrd Mat Machines Accessed 6 | . 6 Terminals 3 | . 3 Fabricators . | . . Repair Stations 1 | . 1 Recycling Units 2 | . 2 Scanalyzers . | . . Garrison Access . | . . Total Hacks 26 | . 26 Successful 16 | . 16 Failed 9 | . 9 Catastrophic 3 | . 3 Database Lockouts 1 | . 1 Manual 16 | . 16 Terminals 12 | . 12 Fabricators . | . . Repair Stations 9 | . 9 Recycling Units 5 | . 5 Scanalyzers . | . . Garrison Access . | . . Terminal Hacks 2 | . 2 Robot Analysis 1 | . 1 Unreport Threat 1 | . 1 Fabricator Hacks . | . . Repair Station Hacks 8 | . 8 Scan Component 4 | . 4 Repair 4 | . 4 Recycling Unit Hacks 1 | . 1 Retrieve Components 1 | . 1 Scanalyzer . | . . Garrison Access Hacks . | . . Unauthorized Hacks 5 | . 5 Terminals 3 | . 3 Botnet 3 | . 3 Fabricators . | . . Repair Stations . | . . Recycling Units 2 | . 2 Reject 1 | . 1 Mask 1 | . 1 Scanalyzers . | . . Garrison Access . | . . Data Cores Recovered . | . . Used . | . . Hacking Detections 6 | . 6 Full Trace Events . | . . Feedback Events . | . . Feedback Blocked . | . . Robot Schematics Acquired . | . . Robots Built . | . . Authchips . | . . Time . | . . Total Robot Build Rating . | . . Part Schematics Acquired . | . . Parts Built . | . . Authchips . | . . Time . | . . Total Part Build Rating . | . . Parts Repaired 4 | . 4 Time 116 | . 116 Parts Recycled . | . . Recycled Matter . | . . Retrieved Matter . | . . Retrieved Components . | . . Parts Scanalyzed . | . . Part Schematics Acquired . | . . Parts Damaged . | . . Bothacking | -11 -10 ------------ Run | Yrd Mat Used RIF Installer . | . . Robots Hacked . | . . Non-combat . | . . Combat . | . . Robot Hacks Applied . | . . Relay Couplers Released . | . . Fabnet Peak Effective % . | . . Robots Rewired . | . . Allies Hacked . | . . Hacks Repelled . | . . Allies | -11 -10 -------- Run | Yrd Mat Total Allies . | . . Largest Group . | . . Highest-Rated Group . | . . Highest-Rated Ally . | . . Total Orders . | . . Ally Attacks . | . . Total Damage . | . . Kills . | . . Allies Corrupted . | . . Allies Melted . | . . Intel | -11 -10 ------- Run | Yrd Mat Robot Analysis Total 1 | . 1 Derelict Logs Recovered . | . . Drone Launches . | . . Drone Recoveries . | . . Exploration | -11 -10 ------------- Run | Yrd Mat Turns Passed 2348 | 32 2316 Spaces Moved 627 | 20 607 Core . | . . Treads 334 | . 334 Legs 293 | 20 273 Wheels . | . . Hover . | . . Flight . | . . Fastest Speed 120 | 120 120 Average Speed 303 | 120 309 Slowest Speed 680 | 120 680 Overloaded Moves . | . . Propulsion Burnouts . | . . Robots Hopped . | . . Cave-ins Triggered . | . . Exploration Rate (%) 42 | 2 82 Regions Visited 1 Branch Regions . Pre-discovered Areas . | . . Known Exits Taken . | . . Unknown Exits Taken 1 | 1 . Scrap Searched . | . . Spaces Dug . | . . Terrain Destroyed . | . . Melee . | . . Projectile . | . . AOE . | . . Terrain Rammed 4 | . 4 Walls Destroyed . | . . Machines Disabled . | . . Actions | -11 -10 --------- Run | Yrd Mat Total 887 | 24 863 Wait 129 | . 129 Move 626 | 19 607 Hop . | . . Pick Up 23 | . 23 Fast Attach 3 | 1 2 Attach 2 | . 2 Detach . | . . Swap 4 | 1 3 Drop 4 | 1 3 Fire 90 | 2 88 Melee . | . . Ram 4 | . 4 Kick . | . . Crush 2 | . 2 Escape Stasis . | . . Rewire . | . . Trap . | . . Miscellaneous . | . . Route ------- -11/Scrapyard -10/Materials (discovered 4 exits: [*Mat x2] / [*Min x2]) History --------- Turn | Location | Event 1 | -11/Scrapyard | Discovered new exit (range 3) 33 | -11/Scrapyard | Entered Materials 302 | -10/Materials | Central database locked down 306 | -10/Materials | Build established: Mutant 745 | -10/Materials | Discovered new exit (range 12) 1170 | -10/Materials | Discovered new exit (range 6) 1402 | -10/Materials | Discovered new exit (range 12) 1434 | -10/Materials | Discovered new exit (range 13) 1578 | -10/Materials | Repaired Assault Rifle 1606 | -10/Materials | Repaired Sensor Array 1645 | -10/Materials | Repaired Lgt. Nuclear Core 1672 | -10/Materials | Repaired Lgt. Treads 2329 | -10/Materials | Core integrity fell below 50% 2346 | -10/Materials | Core integrity fell below 20% 2349 | -10/Materials | Destroyed by G-34 Mercenary with Small Laser Last Messages --------------- 02320_ Lgt. Nuclear Core destroyed. 02328_ Rammed Wall. 02328_ Destabilizing: System corrupted (+2). 02328_ Destabilizing: Core damaged (-10). 02331_ Rammed Wall. 02331_ Destabilizing: System corrupted (+2). 02331_ Destabilizing: System interference. 02331_ Particle Gun temporarily disabled. 02333_ Lgt. Treads destroyed. 02334_ Rammed Wall. 02334_ Assault Rifle broken. 02334_ Destabilizing: Short circuit. 02334_ Particle Gun broken. 02334_ Destabilizing: Short circuit. 02337_ Lgt. Treads destroyed. 02338_ Broken Assault Rifle destroyed. 02339_ Slammed into Wall. 02341_ Broken Particle Gun destroyed. 02343_ R-06 Scavenger collects Ion Engine. 02347_ R-06 Scavenger collects Aluminum Leg. Map ----- +----------------------------------------------------+ | ### #???#?##?# = # ?? ?# # # | | ######?# ####?#??##* %[#####??# # # | | ?####?## ####?##??# =##?????# ########### | | ###??#?# ##??#??#?# * *####### #?????????? | | ??????## #?######## = #??##?????? | | ####?### ### ## #??#?###??? | | ##### ### ##^ " !! #?????????? | | ! + ! * #?# ## T !! #####?????????? | | ######### ## " !! ""###?????????? | | ! #?#??#??# ## T"#??????#????? | | !#??#????# ## ^ ""#???????????# | | %!######### ## ###???????????? | | #+## ##+##### ##????????????? | | r% ##????????????? | | < #?""???????##?? | | ^ g= #?""??????????? | | #/##" "##+### k ^=% % # ""??? ??#???? | | #" !"! "# ## = % # ???? ?????? | | #"""""""# ## ^ * + ????????#??? | | "" ######### ## %#????? ??????? | | "" #???????#! ## #??????? ?????? | | "" #?????### ## #?????????????? | | #??????## ## #?#???????????? | | ####??????## ## ##????????????? | | ?#?????????###### #?????????????? | | ??????#?????????# @g #?????????????? | | ?#?#?????#??????####### ### ga#?????????????? | | ??#?##????????????????###?? #?????????????? | | ?##???????#???????????????? ????????????? | | #?##??#??#????????????????? ??????????? | | ???????????????????????????? ?????????? | | ???#???????????????????????? ???????? | | ???????????????????????????? #??????? | | ???????????????????????????? #??????? | | ??????#?????????????????????? #####+##??????? | | ????#???????????????????????? #?????????????? | | ????????????????????????????? #?????????????? | | ????????????????????????????? #?????????????? | | #?????????????????????????????#?????????????? | | #???????????????????????????????????????????? | | ##??????????????????????????????????????????? | | ????????????????????????????????????????????? | | ?#??????????????????????????????????????????? | | ????????????????????????????????????????????? | | ????????????????????????????????????????????? | | ????????????????????????????????????????????? | | ????????????????????????????????????????????? | | #?#?????????????????????????????????????????? | | ????????????????????????????????????????????? | | ????????????????????????????????????????????? | +----------------------------------------------------+ Best States ------------- Heat Dissipation 25 Energy Generation 14 Energy Capacity 160 Matter Stores 300 Matter Capacity 300 Sight Range 16 Terrain Scan Range 16 Terrain Scan Density 10 Evasion (%) 55 Recoil Reduction 2 Item Schematics ----------------- None Robot Schematics ------------------ None Fabricated ------------ Nothing Alien Tech Used ----------------- None Achievements -------------- None Challenges ------------ None Game ------ Seed StorageImpactStick Manual? 0 Play Time 00:09:54 Cumulative 133.1 hours Start 2024.09.20 @ 21:53:38 End 2024.09.20 @ 22:03:02 Sessions 1 Manual Loads 0 Difficulty Rogue Special Mode None Game No. 181 Rogue 181 Adventurer 0 Explorer 0 Win Type - Total 1 Types 1/0/0/0/0/0/0/0/0 Lore% 45 Gallery% 60 Achievement% 47 Wizard Run 0 Options --------- Layout 0 ASCII 0 Keyboard 0 Movement Mouse Keybinds 1 Fullscreen 1 Font 18/TerminusBold Map View 76x50 Zoom Use 0% Tactical HUD 1 Map Filters NONE Filters NONE Steam 1 RUN: 356572f6-439d-433e-b825-28375dd7ac2f